[Event "31st Roquetas de Mar Open 2020"]
[Site "Roquetas de Mar"]
[Date "2020.01.03"]
[Round "3.4"]
[White "Sivuk, Vitaly"]
[Black "Suarez Uriel, Adrian"]
[Result "1/2-1/2"]
[ECO "A22"]
[WhiteElo "2579"]
[BlackElo "2362"]
[Annotator "ChessBase"]
[PlyCount "69"]
[EventDate "2020.01.02"]
[EventType "swiss"]
[EventCountry "ESP"]
[SourceTitle "playchess.com"]
[Source "ChessBase"]
[SourceQuality "1"]
[TimeControl "5400+30"]

1. c4 {[%emt 0:01:30]} Nf6 {[%emt 0:00:00]} 2. Nc3 {[%emt 0:00:11]} e5 {[%emt 0:00:00]} 3. g3 {[%emt 0:00:36]} Bb4 {[%emt 0:00:00]} 4. e4 {[%emt 0:00:22]} Bxc3 {[%emt 0:01:21]} 5. dxc3 {[%emt 0:00:10]} d6 {[%emt 0:00:07]} 6. f3 {[%emt 0:00:10]} Be6 {[%emt 0:00:51]} 7. Nh3 {[%emt 0:00:27]} h6 {[%emt 0:00:14]} 8. Nf2 {[%emt 0:00:18]} Nc6 {[%emt 0:01:18]} 9. Be3 {[%emt 0:00:50]} Qe7 {[%emt 0:09:05]} 10. b3 {[%emt 0:01:02]} a5 {[%emt 0:02:15]} 11. a4 {[%emt 0:02:50]} Nd7 {[%emt 0:01:07]} 12. Qc2 {[%emt 0:00:58]} Nc5 {[%emt 0:08:53]} 13. Bg2 {[%emt 0:01:08]} O-O {[%emt 0:00:43]} 14. O-O {[%emt 0:03:21]} f5 {[%emt 0:02:57]} 15. Bxc5 {[%emt 0:07:44]} dxc5 {[%emt 0:00:18]} 16. exf5 {[%emt 0:00:06]} Bxf5 {[%emt 0:00:12]} 17. Ne4 {[%emt 0:00:14]} Rad8 {[%emt 0:01:00]} 18. Rae1 {[%emt 0:00:39]} Qd7 {[%emt 0:06:20]} 19. f4 {[%emt 0:04:33]} b6 {[%emt 0:04:00]} 20. Qe2 {[%emt 0:02:28]} Bg4 {[%emt 0:08:24]} 21. Qe3 {[%emt 0:00:44]} Bh3 {[%emt 0:09:32]} 22. Bxh3 {[%emt 0:19:38]} Qxh3 {[%emt 0:00:12]} 23. Nf2 {[%emt 0:08:05]} exf4 {[%emt 0:05:01]} 24. Nxh3 {[%emt 0:02:44]} fxe3 {[%emt 0:00:13]} 25. Rxe3 {[%emt 0:00:05]} Rxf1+ {[%emt 0:11:41]} 26. Kxf1 {[%emt 0:00:05]} g5 {[%emt 0:00:30]} 27. Nf2 {[%emt 0:03:51]} Kf7 {[%emt 0:00:52]} 28. Ke2 {[%emt 0:00:29]} Rd6 {[%emt 0:00:29]} 29. Rf3+ {[%emt 0:01:51]} Ke7 {[%emt 0:00:49]} 30. Ng4 {[%emt 0:00:21]} Re6+ {[%emt 0:00:37]} 31. Re3 {[%emt 0:09:16]} h5 {[%emt 0:00:22]} 32. Rxe6+ {[%emt 0:00:35]} Kxe6 {[%emt 0:00:02]} 33. Ne3 {[%emt 0:00:07]} Ne7 {[%emt 0:00:14]} 34. Kf3 {[%emt 0:03:51]} Ke5 {[%emt 0:00:16]} 35. h3 {[%emt 0:00:52]} 1/2-1/2

[Event "31st Roquetas de Mar Open 2020"]
[Site "Roquetas de Mar"]
[Date "2020.01.03"]
[Round "3.7"]
[White "Klekowski, Maciej"]
[Black "Malovanyi, Yulian"]
[Result "1/2-1/2"]
[ECO "B38"]
[WhiteElo "2515"]
[BlackElo "2360"]
[Annotator "RC"]
[PlyCount "68"]
[EventDate "2020.01.02"]
[EventType "swiss"]
[EventCountry "ESP"]
[SourceTitle "playchess.com"]
[Source "ChessBase"]
[SourceQuality "1"]
[TimeControl "5400+30"]

1. c4 c5 2. Nf3 Nc6 3. d4 cxd4 4. Nxd4 g6 5. e4 Bg7 6. Be3 Nf6 7. Nc3 O-O 8. Be2 d6 9. O-O Nxd4 10. Bxd4 Bd7 11. Qd2 Bc6 12. f3 a5 13. b3 Nd7 14. Be3 Nc5 15. Rac1 Qb6 16. Nb5 Rfc8 17. Rfd1 Qd8 18. Nd4 Qf8 19. Rb1 Bd7 20. Bf1 h5 21. Rbc1 Kh7 22. Ne2 Bh6 23. Nf4 Bc6 24. Nd5 Bxd5 25. exd5 Re8 26. g3 e5 27. dxe6 Rxe6 28. Bxh6 Qxh6 29. Qxh6+ Kxh6 30. Rd5 Ra6 31. Kf2 Rb6 32. Rb1 Kg7 33. Be2 Kf6 34. Bd1 Re5 1/2-1/2

[Event "31st Roquetas de Mar Open 2020"]
[Site "Roquetas de Mar"]
[Date "2020.01.03"]
[Round "3.11"]
[White "Garcia Moreno, Carlos"]
[Black "Villanueva, Mario"]
[Result "1/2-1/2"]
[ECO "C07"]
[WhiteElo "2289"]
[BlackElo "2488"]
[Annotator "ChessBase"]
[PlyCount "136"]
[EventDate "2020.01.02"]
[EventType "swiss"]
[EventCountry "ESP"]
[SourceTitle "playchess.com"]
[Source "ChessBase"]
[SourceQuality "1"]
[TimeControl "5400+30"]

1. e4 {[%emt 0:00:00]} e6 {[%emt 0:04:46]} 2. d4 {[%emt 0:00:08]} d5 {[%emt 0:00:08]} 3. Nd2 {[%emt 0:00:30]} c5 {[%emt 0:00:18]} 4. exd5 {[%emt 0:00:48]} Qxd5 {[%emt 0:00:09]} 5. Ngf3 {[%emt 0:00:42]} cxd4 {[%emt 0:00:49]} 6. Bc4 {[%emt 0:00:26]} Qd8 {[%emt 0:00:16]} 7. O-O {[%emt 0:00:34]} Nc6 {[%emt 0:00:18]} 8. Nb3 {[%emt 0:00:59]} a6 {[%emt 0:00:51]} 9. Nbxd4 {[%emt 0:00:51]} Nxd4 {[%emt 0:00:08]} 10. Nxd4 {[%emt 0:00:37]} Qc7 {[%emt 0:00:07]} 11. Bb3 {[%emt 0:02:51]} Bd6 {[%emt 0:01:04]} 12. h3 {[%emt 0:10:44]} Nf6 {[%emt 0:01:06]} 13. c3 {[%emt 0:04:28]} O-O {[%emt 0:01:27]} 14. Bg5 {[%emt 0:03:28]} Bh2+ {[%emt 0:03:57]} 15. Kh1 {[%emt 0:00:09]} Bf4 {[%emt 0:00:07]} 16. Bxf4 {[%emt 0:07:38]} Qxf4 {[%emt 0:00:07]} 17. Qf3 {[%emt 0:01:45]} Qxf3 {[%emt 0:09:09]} 18. Nxf3 {[%emt 0:00:11]} Rd8 {[%emt 0:00:08]} 19. Rfd1 {[%emt 0:08:56]} Bd7 {[%emt 0:00:09]} 20. Ne5 {[%emt 0:01:57]} Be8 {[%emt 0:00:07]} 21. f3 {[%emt 0:01:05]} Kf8 {[%emt 0:01:14]} 22. Kg1 {[%emt 0:01:25]} Ke7 {[%emt 0:02:09]} 23. Kf2 {[%emt 0:01:00]} g5 {[%emt 0:00:12]} 24. c4 {[%emt 0:13:52]} h5 {[%emt 0:03:01]} 25. Rxd8 {[%emt 0:04:15]} Rxd8 {[%emt 0:00:06]} 26. Rd1 {[%emt 0:00:29]} Rxd1 {[%emt 0:00:24]} 27. Bxd1 {[%emt 0:00:01]} h4 {[%emt 0:00:36]} 28. b4 {[%emt 0:00:58]} Nh5 {[%emt 0:01:05]} 29. Be2 {[%emt 0:01:05]} Kd6 {[%emt 0:05:19]} 30. Nd3 {[%emt 0:01:16]} Nf4 {[%emt 0:01:06]} 31. Nc5 {[%emt 0:03:38]} Bc6 {[%emt 0:02:07]} 32. Bf1 {[%emt 0:00:31]} f5 {[%emt 0:02:13]} 33. Nb3 {[%emt 0:05:54]} Ba4 {[%emt 0:06:29]} 34. Nc5 {[%emt 0:00:41]} Bc6 {[%emt 0:00:17]} 35. Nb3 {[%emt 0:00:10]} Bd7 {[%emt 0:05:43]} 36. Na5 {[%emt 0:02:38]} Kc7 {[%emt 0:02:55]} 37. Nb3 {[%emt 0:01:51]} e5 {[%emt 0:00:46]} 38. Nc5 {[%emt 0:01:20]} Bc8 {[%emt 0:03:52]} 39. Nd3 {[%emt 0:04:32]} Kd6 {[%emt 0:01:06]} 40. Nxf4 {[%emt 0:02:46]} gxf4 {[%emt 0:00:08]} 41. Bd3 {[%emt 0:00:10]} Bd7 {[%emt 0:04:33]} 42. Ke1 {[%emt 0:08:08]} b5 {[%emt 0:02:01]} 43. cxb5 {[%emt 0:00:31]} Bxb5 {[%emt 0:09:14]} 44. Bxf5 {[%emt 0:00:16]} Kd5 {[%emt 0:00:04]} 45. Bc8 {[%emt 0:01:46]} Kc4 {[%emt 0:04:54]} 46. a4 {[%emt 0:00:18]} Bxa4 {[%emt 0:00:05]} 47. Bxa6+ {[%emt 0:00:04]} Kxb4 {[%emt 0:00:04]} 48. Kd2 {[%emt 0:00:19]} Kc5 {[%emt 0:00:19]} 49. Bd3 {[%emt 0:02:22]} Kd4 {[%emt 0:00:14]} 50. Be2 {[%emt 0:00:37]} Bc6 {[%emt 0:00:11]} 51. Bd3 {[%emt 0:00:13]} Bb7 {[%emt 0:00:06]} 52. Be2 {[%emt 0:00:20]} Bd5 {[%emt 0:00:46]} 53. Bd3 {[%emt 0:00:22]} Be6 {[%emt 0:00:14]} 54. Bf1 {[%emt 0:01:30]} Bf5 {[%emt 0:00:14]} 55. Be2 {[%emt 0:00:06]} Bg6 {[%emt 0:00:17]} 56. Bb5 {[%emt 0:02:27]} e4 {[%emt 0:04:05]} 57. fxe4 {[%emt 0:00:05]} Bxe4 {[%emt 0:00:04]} 58. Bf1 {[%emt 0:00:07]} Bd5 {[%emt 0:00:37]} 59. Ke2 {[%emt 0:00:32]} Bc4+ {[%emt 0:00:10]} 60. Kf2 {[%emt 0:00:04]} Bxf1 {[%emt 0:00:06]} 61. Kxf1 {[%emt 0:00:08]} Ke3 {[%emt 0:00:04]} 62. Ke1 {[%emt 0:00:05]} f3 {[%emt 0:00:05]} 63. gxf3 {[%emt 0:00:05]} Kxf3 {[%emt 0:00:04]} 64. Kf1 {[%emt 0:00:02]} Kg3 {[%emt 0:00:04]} 65. Kg1 {[%emt 0:00:03]} Kxh3 {[%emt 0:00:04]} 66. Kh1 {[%emt 0:00:03]} Kg3 {[%emt 0:00:05]} 67. Kg1 {[%emt 0:00:03]} h3 {[%emt 0:00:04]} 68. Kh1 {[%emt 0:00:03]} h2 1/2-1/2

[Event "31st Roquetas de Mar Open 2020"]
[Site "Roquetas de Mar"]
[Date "2020.01.03"]
[Round "3.12"]
[White "Shahil Dey"]
[Black "Real De Azua, Ernesto"]
[Result "0-1"]
[ECO "C50"]
[WhiteElo "2148"]
[BlackElo "2456"]
[Annotator "RC"]
[PlyCount "62"]
[EventDate "2020.01.02"]
[EventType "swiss"]
[EventCountry "ESP"]
[SourceTitle "playchess.com"]
[Source "ChessBase"]
[SourceQuality "1"]
[TimeControl "5400+30"]

1. e4 {[%emt 0:00:00]} e5 {[%emt 0:03:17]} 2. Nf3 {[%emt 0:00:00]} Nc6 {[%emt 0:00:05]} 3. Bc4 {[%emt 0:00:00]} Nf6 {[%emt 0:00:37]} 4. d3 {[%emt 0:00:00]} Bc5 {[%emt 0:01:27]} 5. c3 {[%emt 0:00:08]} d6 {[%emt 0:02:53]} 6. Bg5 {[%emt 0:00:37]} h6 {[%emt 0:00:25]} 7. Bh4 {[%emt 0:00:03]} g5 {[%emt 0:01:04]} 8. Bg3 {[%emt 0:00:06]} Qe7 {[%emt 0:03:37]} 9. b4 {[%emt 0:00:40]} Bb6 {[%emt 0:00:08]} 10. a4 {[%emt 0:00:04]} a5 {[%emt 0:02:31]} 11. b5 {[%emt 0:00:27]} Nd8 {[%emt 0:00:31]} 12. Nbd2 {[%emt 0:02:40]} Ne6 {[%emt 0:10:44]} 13. Bxe6 {[%emt 0:18:30]} Bxe6 {[%emt 0:00:27]} 14. Qe2 {[%emt 0:07:27]} Nh5 {[%emt 0:13:53]} 15. Rd1 {[%emt 0:09:16]} Rg8 {[%emt 0:10:06]} 16. c4 {[%emt 0:10:26]} O-O-O {[%emt 0:06:41]} 17. Nb3 {[%emt 0:06:18]} Nf4 {[%emt 0:03:29]} 18. Bxf4 {[%emt 0:00:10]} gxf4 {[%emt 0:00:04]} 19. Rg1 {[%emt 0:03:05]} f5 {[%emt 0:00:07]} 20. Rc1 {[%emt 0:07:17]} fxe4 {[%emt 0:05:57]} 21. dxe4 {[%emt 0:00:07]} Rg7 {[%emt 0:02:01]} 22. Kd2 {[%emt 0:12:52]} Rdg8 {[%emt 0:02:05]} 23. Qf1 {[%emt 0:03:12]} Bg4 {[%emt 0:02:58]} 24. Rc3 {[%emt 0:01:08]} Bxf3 {[%emt 0:07:58]} 25. Rxf3 {[%emt 0:00:10]} d5 {[%emt 0:00:05]} 26. exd5 {[%emt 0:06:05]} e4 {[%emt 0:01:02]} 27. Rxf4 {[%emt 0:01:09]} e3+ {[%emt 0:01:09]} 28. Kc2 {[%emt 0:00:22]} exf2 {[%emt 0:01:10]} 29. Rxf2 {[%emt 0:01:14]} Qe4+ {[%emt 0:01:47]} 30. Kb2 {[%emt 0:00:26]} Bxf2 {[%emt 0:00:56]} 31. Qxf2 {[%emt 0:01:02]} Rxg2 {[%emt 0:01:35]} 0-1

[Event "31st Roquetas de Mar Open 2020"]
[Site "Roquetas de Mar"]
[Date "2020.01.03"]
[Round "3.13"]
[White "Cruz Lledo, Pablo"]
[Black "Vergara Anton, Diego"]
[Result "1-0"]
[ECO "D35"]
[WhiteElo "2452"]
[BlackElo "2152"]
[Annotator "ChessBase"]
[PlyCount "105"]
[EventDate "2020.01.02"]
[EventType "swiss"]
[EventCountry "ESP"]
[SourceTitle "playchess.com"]
[Source "ChessBase"]
[SourceQuality "1"]
[TimeControl "5400+30"]

1. d4 d5 2. c4 e6 3. Nc3 Nf6 4. cxd5 exd5 5. Bg5 Be7 6. e3 c6 7. Bd3 Nbd7 8. Qc2 h6 9. Bf4 Nh5 10. Be5 Nxe5 11. dxe5 d4 12. exd4 Qxd4 13. Nf3 Qb6 14. O-O-O Nf4 15. Be4 Bg4 16. h3 Bxf3 17. Bxf3 O-O 18. Rd7 Bb4 19. Na4 Qa6 20. Rd4 Rad8 21. Rhd1 Rxd4 22. Rxd4 Be7 23. Rxf4 Bg5 24. g3 Qf1+ 25. Bd1 Qxh3 26. Nc5 b6 27. Ne4 Bxf4+ 28. gxf4 Qe6 29. Kb1 Rd8 30. Nd6 Rxd6 31. exd6 Qxd6 32. f5 c5 33. a4 Qd4 34. Qe2 Kf8 35. Bb3 Qd7 36. Qe4 h5 37. Ka2 Qc7 38. Qh4 Kg8 39. f6 gxf6 40. Qxf6 c4 41. Bc2 Qc5 42. f4 Kf8 43. f5 Qd5 44. Qh8+ Ke7 45. Qxh5 Qd4 46. Qe2+ Kd7 47. Qd1 Qxd1 48. Bxd1 Kd6 49. b3 c3 50. b4 Ke5 51. Bc2 f6 52. Kb3 Kd4 53. b5 1-0

[Event "31st Roquetas de Mar Open 2020"]
[Site "Roquetas de Mar"]
[Date "2020.01.03"]
[Round "3.17"]
[White "Harutyunian, Tigran K."]
[Black "Rodriguez Melendez, Juan Humbert"]
[Result "1-0"]
[ECO "A49"]
[WhiteElo "2533"]
[BlackElo "2259"]
[Annotator "RC"]
[PlyCount "105"]
[EventDate "2020.01.02"]
[EventType "swiss"]
[EventCountry "ESP"]
[SourceTitle "playchess.com"]
[Source "ChessBase"]
[SourceQuality "1"]
[TimeControl "5400+30"]

1. d4 {[%emt 0:03:48]} Nf6 {[%emt 0:00:00]} 2. Nf3 {[%emt 0:00:09]} g6 {[%emt 0:00:22]} 3. g3 {[%emt 0:01:18]} Bg7 {[%emt 0:00:46]} 4. Bg2 {[%emt 0:00:05]} O-O {[%emt 0:00:54]} 5. O-O {[%emt 0:00:07]} d6 {[%emt 0:00:13]} 6. Re1 {[%emt 0:00:18]} c5 {[%emt 0:01:52]} 7. d5 {[%emt 0:00:34]} e6 {[%emt 0:01:52]} 8. Nc3 {[%emt 0:06:23]} Nxd5 {[%emt 0:16:31]} 9. Nxd5 {[%emt 0:00:09]} exd5 {[%emt 0:00:04]} 10. Qxd5 {[%emt 0:00:46]} Nc6 {[%emt 0:00:24]} 11. c3 {[%emt 0:01:30]} Be6 {[%emt 0:00:49]} 12. Qd1 {[%emt 0:01:32]} h6 {[%emt 0:05:53]} 13. e4 {[%emt 0:01:46]} Qc7 {[%emt 0:06:17]} 14. Qc2 {[%emt 0:03:25]} Rab8 {[%emt 0:09:42]} 15. Nh4 {[%emt 0:03:23]} Rbe8 {[%emt 0:16:31]} 16. Be3 {[%emt 0:02:53]} Ne5 {[%emt 0:01:51]} 17. Rad1 {[%emt 0:00:58]} Bg4 {[%emt 0:08:50]} 18. f3 {[%emt 0:03:30]} g5 {[%emt 0:00:32]} 19. fxg4 {[%emt 0:01:36]} gxh4 {[%emt 0:00:08]} 20. Bf4 {[%emt 0:05:48]} hxg3 {[%emt 0:01:02]} 21. Bxg3 {[%emt 0:00:29]} Re6 {[%emt 0:00:19]} 22. h3 {[%emt 0:02:03]} Ng6 {[%emt 0:01:26]} 23. Rf1 {[%emt 0:02:44]} Be5 {[%emt 0:00:25]} 24. Qf2 {[%emt 0:01:39]} Qe7 {[%emt 0:00:55]} 25. Qe1 {[%emt 0:01:59]} Kh7 {[%emt 0:02:16]} 26. Rf5 {[%emt 0:05:14]} Rg8 {[%emt 0:01:03]} 27. Bf1 {[%emt 0:02:04]} Bxg3 {[%emt 0:01:10]} 28. Qxg3 {[%emt 0:00:06]} Ne5 {[%emt 0:00:12]} 29. Be2 {[%emt 0:00:19]} Reg6 {[%emt 0:01:02]} 30. Kh2 {[%emt 0:03:26]} Rg5 {[%emt 0:01:11]} 31. Qf4 {[%emt 0:01:36]} R5g6 {[%emt 0:02:17]} 32. Rf1 {[%emt 0:02:36]} R8g7 {[%emt 0:00:15]} 33. Qf2 {[%emt 0:09:04]} Qe6 {[%emt 0:00:54]} 34. b3 {[%emt 0:01:05]} Qe7 {[%emt 0:00:10]} 35. Qg3 {[%emt 0:04:58]} b6 {[%emt 0:00:57]} 36. R1f4 {[%emt 0:00:23]} Re6 {[%emt 0:01:32]} 37. Qf2 {[%emt 0:01:52]} Kg8 {[%emt 0:00:50]} 38. Rh5 {[%emt 0:03:16]} Ng6 {[%emt 0:03:53]} 39. Rff5 {[%emt 0:01:10]} Rxe4 {[%emt 0:01:31]} 40. Bf3 {[%emt 0:11:05]} Re1 {[%emt 0:01:47]} 41. Rxh6 {[%emt 0:01:01]} Ne5 {[%emt 0:00:31]} 42. Bg2 {[%emt 0:01:37]} Nd3 {[%emt 0:01:15]} 43. Rfh5 {[%emt 0:00:56]} Rh7 {[%emt 0:01:58]} 44. Qd2 {[%emt 0:02:56]} Re2 {[%emt 0:06:23]} 45. Qxd3 {[%emt 0:00:26]} Rxh6 {[%emt 0:00:16]} 46. Rxh6 {[%emt 0:00:06]} Qe5+ {[%emt 0:00:14]} 47. Kg1 {[%emt 0:02:41]} Re1+ {[%emt 0:01:00]} 48. Kf2 {[%emt 0:00:24]} Ra1 {[%emt 0:01:07]} 49. Qh7+ {[%emt 0:00:38]} Kf8 {[%emt 0:00:06]} 50. Qh8+ {[%emt 0:00:04]} Qxh8 {[%emt 0:00:15]} 51. Rxh8+ {[%emt 0:00:04]} Kg7 {[%emt 0:00:06]} 52. Re8 {[%emt 0:00:28]} Rxa2+ {[%emt 0:00:59]} 53. Re2 {[%emt 0:00:05]} 1-0

[Event "31st Roquetas de Mar Open 2020"]
[Site "Roquetas de Mar"]
[Date "2020.01.04"]
[Round "4.4"]
[White "Bjerre, Jonas Buhl"]
[Black "Wieczorek, Oskar"]
[Result "1/2-1/2"]
[ECO "D85"]
[WhiteElo "2535"]
[BlackElo "2490"]
[Annotator "ChessBase"]
[PlyCount "73"]
[EventDate "2020.01.02"]
[EventType "swiss"]
[EventCountry "ESP"]
[SourceTitle "playchess.com"]
[Source "ChessBase"]
[SourceQuality "1"]
[TimeControl "5400+30"]

1. d4 {[%emt 0:00:00]} Nf6 {[%emt 0:05:36]} 2. c4 {[%emt 0:00:00]} g6 {[%emt 0:00:03]} 3. Nc3 {[%emt 0:00:07]} d5 {[%emt 0:00:04]} 4. cxd5 {[%emt 0:00:20]} Nxd5 {[%emt 0:00:05]} 5. e4 {[%emt 0:00:17]} Nxc3 {[%emt 0:00:05]} 6. bxc3 {[%emt 0:00:05]} Bg7 {[%emt 0:00:08]} 7. Nf3 {[%emt 0:00:32]} c5 {[%emt 0:00:04]} 8. Be3 {[%emt 0:00:33]} Qa5 {[%emt 0:00:19]} 9. Qd2 {[%emt 0:00:23]} Nc6 {[%emt 0:00:35]} 10. Rb1 {[%emt 0:02:03]} a6 {[%emt 0:00:17]} 11. Rc1 {[%emt 0:00:41]} cxd4 {[%emt 0:00:50]} 12. cxd4 {[%emt 0:00:12]} Qxd2+ {[%emt 0:00:03]} 13. Kxd2 {[%emt 0:00:14]} f5 {[%emt 0:00:03]} 14. e5 {[%emt 0:03:57]} O-O {[%emt 0:00:26]} 15. Bc4+ {[%emt 0:04:39]} e6 {[%emt 0:00:58]} 16. Ke2 {[%emt 0:05:35]} Bd7 {[%emt 0:01:18]} 17. h4 {[%emt 0:18:28]} Rfc8 {[%emt 0:00:41]} 18. Ng5 {[%emt 0:03:42]} Nd8 {[%emt 0:01:43]} 19. Bb3 {[%emt 0:04:06]} a5 {[%emt 0:11:08]} 20. f3 {[%emt 0:11:43]} a4 {[%emt 0:07:47]} 21. Bc2 {[%emt 0:00:37]} Nc6 {[%emt 0:04:35]} 22. g4 {[%emt 0:05:21]} Nb4 {[%emt 0:08:52]} 23. Bb1 {[%emt 0:00:46]} Nd5 {[%emt 0:12:01]} 24. Bd2 {[%emt 0:04:37]} Rxc1 {[%emt 0:11:59]} 25. Rxc1 {[%emt 0:00:24]} Rc8 {[%emt 0:06:03]} 26. Rxc8+ {[%emt 0:07:17]} Bxc8 {[%emt 0:00:07]} 27. Bd3 {[%emt 0:01:24]} h6 {[%emt 0:12:29]} 28. Nh3 {[%emt 0:00:16]} Bd7 {[%emt 0:00:06]} 29. h5 {[%emt 0:06:14]} fxg4 {[%emt 0:12:09]} 30. fxg4 {[%emt 0:00:08]} gxh5 {[%emt 0:00:10]} 31. g5 {[%emt 0:01:48]} hxg5 {[%emt 0:00:09]} 32. Nxg5 {[%emt 0:00:04]} Kf8 {[%emt 0:04:15]} 33. Bg6 {[%emt 0:01:17]} h4 {[%emt 0:00:23]} 34. Nh7+ {[%emt 0:00:46]} Kg8 {[%emt 0:00:04]} 35. Ng5 {[%emt 0:00:07]} Kf8 {[%emt 0:00:15]} 36. Nh7+ {[%emt 0:00:07]} Kg8 {[%emt 0:00:05]} 37. Ng5 {[%emt 0:01:11]} 1/2-1/2

[Event "31st Roquetas de Mar Open 2020"]
[Site "Roquetas de Mar"]
[Date "2020.01.04"]
[Round "4.5"]
[White "Sosa, Tomas"]
[Black "Cruz Lledo, Pablo"]
[Result "1/2-1/2"]
[ECO "B06"]
[WhiteElo "2508"]
[BlackElo "2452"]
[Annotator "ChessBase"]
[PlyCount "204"]
[EventDate "2020.01.02"]
[EventType "swiss"]
[EventCountry "ESP"]
[SourceTitle "playchess.com"]
[Source "ChessBase"]
[SourceQuality "1"]
[TimeControl "5400+30"]

1. e4 {[%emt 0:07:49]} g6 {[%emt 0:00:00]} 2. d4 {[%emt 0:00:05]} Bg7 {[%emt 0:00:00]} 3. Nc3 {[%emt 0:00:13]} c6 {[%emt 0:00:00]} 4. f4 {[%emt 0:00:40]} d5 {[%emt 0:00:00]} 5. e5 {[%emt 0:00:05]} Nh6 {[%emt 0:00:07]} 6. Nf3 {[%emt 0:01:13]} f6 {[%emt 0:00:06]} 7. Be3 {[%emt 0:03:42]} O-O {[%emt 0:00:09]} 8. Be2 {[%emt 0:02:29]} Bg4 {[%emt 0:00:25]} 9. O-O {[%emt 0:09:38]} Nd7 {[%emt 0:00:09]} 10. Bf2 {[%emt 0:02:31]} Rc8 {[%emt 0:01:38]} 11. Qd2 {[%emt 0:04:35]} Bxf3 {[%emt 0:09:16]} 12. Bxf3 {[%emt 0:00:09]} e6 {[%emt 0:00:57]} 13. Ne2 {[%emt 0:07:45]} c5 {[%emt 0:05:37]} 14. c4 {[%emt 0:01:12]} dxc4 {[%emt 0:12:16]} 15. Bxb7 {[%emt 0:03:04]} Rc7 {[%emt 0:00:25]} 16. Bf3 {[%emt 0:00:33]} fxe5 {[%emt 0:00:30]} 17. d5 {[%emt 0:10:05]} e4 {[%emt 0:15:27]} 18. Bxe4 {[%emt 0:00:28]} Nf6 {[%emt 0:00:08]} 19. Bf3 {[%emt 0:00:05]} exd5 {[%emt 0:01:26]} 20. Nc3 {[%emt 0:00:40]} d4 {[%emt 0:05:36]} 21. Nb5 {[%emt 0:00:46]} Rcf7 {[%emt 0:04:15]} 22. Qe2 {[%emt 0:07:54]} a6 {[%emt 0:11:53]} 23. Na3 {[%emt 0:00:06]} c3 {[%emt 0:00:06]} 24. bxc3 {[%emt 0:00:38]} Nd5 {[%emt 0:00:08]} 25. cxd4 {[%emt 0:04:34]} Nxf4 {[%emt 0:00:19]} 26. Qc4 {[%emt 0:01:10]} Bxd4 {[%emt 0:02:26]} 27. Bxd4 {[%emt 0:03:49]} Qxd4+ {[%emt 0:03:18]} 28. Qxd4 {[%emt 0:01:14]} cxd4 {[%emt 0:00:03]} 29. g3 {[%emt 0:00:40]} Ne6 {[%emt 0:00:11]} 30. Bd5 {[%emt 0:01:06]} Rxf1+ {[%emt 0:00:16]} 31. Rxf1 {[%emt 0:00:06]} Rxf1+ {[%emt 0:00:09]} 32. Kxf1 {[%emt 0:00:05]} Kf7 {[%emt 0:00:04]} 33. Ke2 {[%emt 0:03:46]} Kf6 {[%emt 0:03:38]} 34. Nc2 {[%emt 0:11:39]} Nc5 {[%emt 0:03:40]} 35. Bc4 {[%emt 0:00:20]} Ke5 {[%emt 0:01:33]} 36. Nb4 {[%emt 0:00:17]} Ng4 {[%emt 0:01:20]} 37. Nxa6 {[%emt 0:01:22]} Ne4 {[%emt 0:00:44]} 38. h3 {[%emt 0:03:49]} Nxg3+ {[%emt 0:04:46]} 39. Kf3 {[%emt 0:00:20]} Ne3 {[%emt 0:00:04]} 40. Bg8 {[%emt 0:00:08]} Ne4 {[%emt 0:00:25]} 41. Nb4 {[%emt 0:00:49]} Ng5+ {[%emt 0:01:14]} 42. Ke2 {[%emt 0:01:26]} Nxh3 {[%emt 0:02:38]} 43. Nc6+ {[%emt 0:02:23]} Ke4 {[%emt 0:00:22]} 44. Bxh7 {[%emt 0:00:13]} Nf4+ {[%emt 0:00:24]} 45. Ke1 {[%emt 0:00:50]} d3 {[%emt 0:06:09]} 46. Nb4 {[%emt 0:00:51]} Nc4 {[%emt 0:00:51]} 47. Nxd3 {[%emt 0:01:43]} Kxd3 48. a4 {[%emt 0:00:56]} Na5 {[%emt 0:01:21]} 49. Kf2 {[%emt 0:00:07]} Ke4 {[%emt 0:00:36]} 50. Kg3 {[%emt 0:00:42]} Kf5 {[%emt 0:00:12]} 51. Kf3 {[%emt 0:00:25]} Nd5 {[%emt 0:01:57]} 52. Bxg6+ {[%emt 0:00:12]} Kxg6 {[%emt 0:00:03]} 53. Ke4 {[%emt 0:00:09]} Nb6 {[%emt 0:00:22]} 54. Ke5 {[%emt 0:00:22]} Kf7 {[%emt 0:00:17]} 55. Kf5 {[%emt 0:00:15]} Nbc4 {[%emt 0:00:15]} 56. Kf4 {[%emt 0:00:20]} Ke6 {[%emt 0:01:10]} 57. Ke4 {[%emt 0:00:06]} Kd6 {[%emt 0:01:17]} 58. Kd4 {[%emt 0:00:09]} Kc6 {[%emt 0:00:02]} 59. Kd3 {[%emt 0:00:32]} Kd5 {[%emt 0:00:17]} 60. Kc3 {[%emt 0:00:05]} Kc5 {[%emt 0:01:09]} 61. Kd3 {[%emt 0:00:06]} Nd6 {[%emt 0:00:27]} 62. Kc3 {[%emt 0:00:30]} Ne4+ {[%emt 0:00:40]} 63. Kd3 {[%emt 0:00:05]} Kd5 {[%emt 0:00:03]} 64. Ke3 {[%emt 0:00:04]} Nc5 {[%emt 0:00:22]} 65. Kf4 {[%emt 0:00:22]} Ke6 {[%emt 0:00:49]} 66. Kg4 {[%emt 0:01:08]} Ke5 {[%emt 0:00:25]} 67. Kf3 {[%emt 0:00:19]} Ne6 {[%emt 0:00:37]} 68. Ke3 {[%emt 0:00:16]} Nf4 {[%emt 0:00:03]} 69. Kf3 {[%emt 0:00:09]} Nd5 {[%emt 0:00:06]} 70. Kg3 {[%emt 0:00:32]} Ke4 {[%emt 0:00:13]} 71. Kg4 {[%emt 0:00:26]} Nf6+ {[%emt 0:02:16]} 72. Kg5 {[%emt 0:00:08]} Ke5 {[%emt 0:00:06]} 73. Kg6 {[%emt 0:00:05]} Ne4 {[%emt 0:00:37]} 74. Kf7 {[%emt 0:00:05]} Kd6 {[%emt 0:00:07]} 75. Kg7 {[%emt 0:01:19]} Ke7 {[%emt 0:00:11]} 76. Kg6 {[%emt 0:00:06]} Ke6 {[%emt 0:00:04]} 77. Kg7 {[%emt 0:00:38]} Nd2 {[%emt 0:00:43]} 78. Kh6 {[%emt 0:00:42]} Kf6 {[%emt 0:04:38]} 79. Kh5 {[%emt 0:00:05]} Kf5 {[%emt 0:00:13]} 80. Kh6 {[%emt 0:00:17]} Ne4 {[%emt 0:00:19]} 81. Kg7 {[%emt 0:00:48]} Ng5 {[%emt 0:00:24]} 82. Kf8 {[%emt 0:01:10]} Kf6 {[%emt 0:00:54]} 83. Ke8 {[%emt 0:00:04]} Ke6 {[%emt 0:00:13]} 84. Kd8 {[%emt 0:00:35]} Kd6 {[%emt 0:00:24]} 85. Ke8 {[%emt 0:00:05]} Ne4 {[%emt 0:02:56]} 86. Kf7 {[%emt 0:00:04]} Kd7 {[%emt 0:00:06]} 87. Kg7 {[%emt 0:00:18]} Ke7 {[%emt 0:00:17]} 88. Kg6 {[%emt 0:00:05]} Ke6 {[%emt 0:00:01]} 89. Kg7 {[%emt 0:00:53]} Ng5 {[%emt 0:00:17]} 90. Kg6 {[%emt 0:00:11]} Nf3 {[%emt 0:00:02]} 91. Kg7 {[%emt 0:01:07]} Ne5 {[%emt 0:00:09]} 92. Kh6 {[%emt 0:00:22]} Kf5 {[%emt 0:00:43]} 93. Kg7 {[%emt 0:00:28]} Kg5 {[%emt 0:00:08]} 94. Kf8 {[%emt 0:00:31]} Kf6 {[%emt 0:00:13]} 95. Ke8 {[%emt 0:00:11]} Ke6 {[%emt 0:02:49]} 96. Kf8 {[%emt 0:00:16]} Nf3 {[%emt 0:00:43]} 97. Kg7 {[%emt 0:00:13]} Nh4 {[%emt 0:00:15]} 98. Kh6 {[%emt 0:00:12]} Nf3 {[%emt 0:00:45]} 99. Kg6 {[%emt 0:00:15]} Ne5+ {[%emt 0:00:31]} 100. Kg5 {[%emt 0:00:05]} Nd7 {[%emt 0:00:26]} 101. Kf4 {[%emt 0:00:05]} Nb8 {[%emt 0:00:16]} 102. Ke4 {[%emt 0:00:06]} Nac6 {[%emt 0:00:04]} 1/2-1/2